Cogmind - Beta 13 X2 @@@ ROGUE MODE // 2024.02.08 @ 21:38:40 Player: Minty Result: Destroyed by H-71 Marshal with Heavy Mass Driver Performance ------------- Evolutions (7) 3500 Regions Visited (19) 3800 Robots Destroyed (239) 1195 Value Destroyed (10678) 10678 Prototype IDs (32) 640 Alien Tech Used (0) 0 Bonus (6105) 6105 TOTAL SCORE: 25918 Bonus ------- High Alert Combat Kills 3773 Follower Combat Kills 1679 Met Warlord at Base 500 MAIN.C Attacked Warlord 500 Warlord Defense Kills 134 Friendly Fire -481 Cogmind --------- Core Integrity 0/1300 Matter 295/300 Energy 100/100 System Corruption 64% Temperature Cool (2) Movement Flying (40) Location -3/Research Parts ------- > --- POWER (2) -------- (None) > --- PROPULSION (4) --- Field Propulsion Array > --- UTILITY (9) ------ Enhanced Optical Array Improved Signal Interpreter Improved Target Analyzer Advanced Target Analyzer > --- WEAPON (6) ------- (None) > --- INVENTORY (5) ---- (None) Peak State ------------ > --- POWER ------------ Vortex Chain Reactor > --- PROPULSION ------- Armored Heavy Treads Advanced Heavy Treads > --- UTILITY ---------- Experimental Heat Sink Enhanced Optical Array Improved Signal Interpreter Advanced Targeting Computer Advanced Target Analyzer Improved Core Shielding Improved Utility Shielding Experimental Thermal Shield Advanced Hacking Suite > --- WEAPON ----------- High-powered Shock Rifle Gamma Rifle Gamma Rifle Gamma Rifle Gamma Rifle Tactical Quantum Warhead > --- INVENTORY -------- Particle Reactor Minesniffer Drone Bay Gamma Bomb Array Fusion Bomb Launcher Makeshift Axe [Rating: 149] Favorites ----------- Power Vortex Chain Reactor Engine Ion Engine Power Core Reinforced Fission Core Reactor Vortex Chain Reactor Propulsion Heavy Treads Treads Heavy Treads Leg Aluminum Leg Wheel Compact Wheel Hover Unit Cooled Antigrav System Flight Unit Field Propulsion Array Utility Advanced Targeting Computer Device Experimental Heat Sink Storage Small Storage Unit Processor Advanced Targeting Computer Hackware Advanced Hacking Suite Protection Damper Plating Weapon Improved Spread Laser Energy Gun Improved Spread Laser Ballistic Gun Helical Railgun Launcher EMP Blaster Special Weapon RU-N14's Throwing Claymores v3 Impact Weapon Powered Hammer Slashing Weapon Makeshift Axe Special Melee Weapon Advanced Datajack Build | -11 -10 -10 -9 -9 -9 -8 -8 -7 -7 -7 -6 -5 -5 -5 -4 -4 -4 -3 -3 ------- Run | Yrd Mat Min Mat Min Exi Min Mat Fac Was Fac Fac Fac Upp Upp Fac Upp War Pro Res Slots Evolved 14 | . . . 2 . . . 2 2 . . 2 2 . . 2 . . . 2 Power 1 | . . . . . . . . . . . . 1 . . . . . . . Propulsion 2 | . . . . . . . 1 1 . . . . . . . . . . . Utility 7 | . . . 2 . . . . . . . 1 1 . . 2 . . . 1 Weapon 4 | . . . . . . . 1 1 . . 1 . . . . . . . 1 Parts Attached 258 | . 2 3 2 4 . 4 10 16 5 5 5 68 9 3 14 . 32 13 63 Power 23 | . 1 . . . . . 2 1 1 . 1 7 3 . 1 . 2 . 4 Engine 8 | . 1 . . . . . 1 1 . . 1 1 2 . . . 1 . . Core 8 | . . . . . . . 1 . . . . 5 1 . 1 . . . . Reactor 7 | . . . . . . . . . 1 . . 1 . . . . 1 . 4 Propulsion 33 | . . . . 2 . 1 3 4 2 . . 6 . 1 2 . 3 . 9 Treads 16 | . . . . 2 . 1 1 1 2 . . 5 . . . . . . 4 Leg 3 | . . . . . . . 1 2 . . . . . . . . . . . Wheel 1 | . . . . . . . 1 . . . . . . . . . . . . Hover 8 | . . . . . . . . 1 . . . 1 . . . . 2 . 4 Flight 5 | . . . . . . . . . . . . . . 1 2 . 1 . 1 Utility 78 | . 1 1 2 1 . 2 . 3 1 . 1 24 3 1 7 . 9 7 15 Device 30 | . . . 2 1 . 2 . . . . 1 10 1 1 . . 5 3 4 Storage 1 | . 1 . . . . . . . . . . . . . . . . . . Processor 21 | . . 1 . . . . . 1 . . . 8 1 . 2 . . 1 7 Hackware 4 | . . . . . . . . . . . . 1 . . 1 . 1 . 1 Protection 22 | . . . . . . . . 2 1 . . 5 1 . 4 . 3 3 3 Artifact . | . . . . . . . . . . . . . . . . . . . . Weapon 124 | . . 2 . 1 . 1 5 8 1 5 3 31 3 1 4 . 18 6 35 Energy Gun 58 | . . . . 1 . 1 5 7 . 1 1 18 3 1 . . 10 . 10 Energy Cannon . | . . . . . . . . . . . . . . . . . . . . Ballistic Gun 23 | . . 2 . . . . . . . . 2 7 . . . . 3 . 9 Ballistic Cannon . | . . . . . . . . . . . . . . . . . . . . Launcher 22 | . . . . . . . . 1 1 2 . 4 . . . . 2 3 9 Special Weapon 11 | . . . . . . . . . . . . 1 . . 1 . 3 2 4 Impact Weapon 5 | . . . . . . . . . . 2 . 1 . . . . . . 2 Slashing Weapon 4 | . . . . . . . . . . . . . . . 2 . . 1 1 Piercing Weapon . | . . . . . . . . . . . . . . . . . . . . Special Melee Weapon 1 | . . . . . . . . . . . . . . . 1 . . . . Unidentified Prototypes 24 | . . . . . . . 1 3 1 . 1 3 . . 1 . 11 . 3 Corrupted Parts 5 | . . . . . . . . . . . . . . . . . . . 5 System Corruption 34 | . . . . . . . . . . . . . . . . . . . 34 Parts Lost 86 | . . . . 1 . . . 5 . . 1 20 2 3 9 2 1 5 37 Power 9 | . . . . . . . . . . . . 3 . 1 1 . . . 4 Propulsion 12 | . . . . . . . . 3 . . . 3 . . 2 . 1 . 3 Utility 29 | . . . . 1 . . . 2 . . 1 6 1 1 3 1 . 5 8 Weapon 36 | . . . . . . . . . . . . 8 1 1 3 1 . . 22 Highest Loss Streak 13 | . . . . 1 . . . 2 . . 1 10 2 2 8 1 1 4 13 To Critical Strikes 1 | . . . . . . . . 1 . . . . . . . . . . . Average Slot Usage (%) 76 | . 93 98 95 99 100 100 95 85 67 61 65 84 32 47 43 39 56 70 71 Engine 3 | . 14 14 11 11 11 11 3 7 4 . 1 1 1 4 . . 3 . . Core 1 | . . . . . . . 5 . . . . 6 . . 1 . . . . Reactor 2 | . . . . . . . . . 2 7 4 . . . . . 2 5 3 Treads 9 | . . . . 20 22 22 22 12 14 15 13 13 . . . . . . 5 Leg 1 | . 28 28 22 . . . 1 6 1 . . . . . . . . . . Hover 1 | . . . . . . . . . . . . . 5 5 2 . 4 10 2 Device 10 | . . . 17 21 22 22 18 11 . . 6 13 1 . . . 8 12 9 Storage 2 | . 21 15 11 11 11 11 9 7 1 . . . . . . . . . . Processor 10 | . . 12 11 11 11 11 9 2 1 . . 12 10 11 10 10 10 9 18 Hackware 2 | . . . . . . . . . . . . 3 5 5 9 7 7 5 3 Protection 4 | . . . . . . . . 6 8 7 5 2 1 . 6 . . 11 7 Energy Gun 12 | . 14 12 . 3 11 12 23 26 23 23 23 18 3 13 3 . 9 . 7 Ballistic Gun 6 | . 14 14 22 18 11 9 . . . . 4 7 . . . . . 10 5 Launcher 1 | . . . . . . . . 2 7 5 4 . . . . . . . . Naked Turns . | . . . . . . . . . . . . . . . . . . . . Heaviest Build 91 | 12 17 17 16 17 17 22 27 40 79 80 85 69 22 28 46 4 50 81 91 Greatest Support 140 | 20 20 20 20 43 43 43 63 63 140 140 140 140 12 12 19 4 38 38 130 Greatest Overweight (x) 3 | . . . . . . . 1 1 . . . 1 2 2 3 . 3 3 3 Average Overweight (x) . | . . . . . . . . . . . . . . 1 . . . 2 . Largest Inventory Capacity 8 | . 8 8 8 8 8 8 8 8 8 5 5 5 5 5 5 5 5 5 5 Average Capacity 5 | . 8 8 8 8 8 8 8 8 5 5 5 5 5 5 5 5 5 5 5 Most Carried 8 | . 7 8 8 8 8 8 8 8 8 5 5 5 5 5 5 5 5 5 5 Average Carried 5 | . 6 7 8 7 8 7 7 7 5 4 4 4 3 4 4 5 4 4 4 Final Capacity 8 | 8 8 8 8 8 8 8 8 8 5 5 5 5 5 5 5 5 5 5 5 Final Carried 8 | 6 7 8 8 8 8 8 8 7 5 5 5 3 4 5 5 5 5 4 . Class Distribution -------------------- 35% | Mutant 17% | Gunner 16% | Scavenger-Tank 10% | Scavenger-Gunner 6% | Hacker-Mutant 5% | Scavenger-Executioner 4% | Tank Dominant Class ---------------- Mutant | -10/Materials Mutant | -10/Mines Mutant | -9/Materials Mutant | -9/Mines Mutant | -9/Exiles Mutant | -8/Mines Mutant | -8/Materials Gunner | -7/Factory Tank | -7/Waste Scavenger-Tank | -7/Factory Scavenger-Tank | -6/Factory Scavenger-Gunner | -5/Factory Mutant | -5/Upper Caves Mutant | -5/Upper Caves Hacker-Mutant | -4/Factory Hacker-Sprinter | -4/Upper Caves Hacker-Mutant | -4/Warlord Mutant | -3/Proximity Caves Scavenger-Executioner | -3/Research Resources | -11 -10 -10 -9 -9 -9 -8 -8 -7 -7 -7 -6 -5 -5 -5 -4 -4 -4 -3 -3 ----------- Run | Yrd Mat Min Mat Min Exi Min Mat Fac Was Fac Fac Fac Upp Upp Fac Upp War Pro Res Matter Collected 5491 | 200 9 206 . 208 . 37 97 185 70 99 113 1390 24 108 . 133 302 366 1944 Remotely . | . . . . . . . . . . . . . . . . . . . . Salvage Created 10787 | . 52 40 . 223 . 10 231 619 . 188 718 4467 . 143 24 80 72 639 3281 Parts 488 | . 3 2 . 13 . 4 12 22 . 12 25 197 . 14 4 9 . 24 147 Haulers Intercepted 6 | . 1 . . . . . 1 1 . . . 2 . . . . . 1 . Recyclers Shooed 9 | . . . . 1 . 1 1 1 . . 1 3 . . . . . . 1 Parts Field Recycled . | . . . . . . . . . . . . . . . . . . . . Retrieved Matter . | . . . . . . . . . . . . . . . . . . . . Parts Self-Destructed 52 | . . . . . . . . . . . . . 4 14 . 12 . 22 . Prevented 4 | . . . . . . . . . . . . . 3 1 . . . . . Kills | -11 -10 -10 -9 -9 -9 -8 -8 -7 -7 -7 -6 -5 -5 -5 -4 -4 -4 -3 -3 ------- Run | Yrd Mat Min Mat Min Exi Min Mat Fac Was Fac Fac Fac Upp Upp Fac Upp War Pro Res Combat Hostiles Destroyed 183 | . . 2 . 7 . 1 4 12 . 4 8 52 . 5 . 3 1 20 64 Melee 10 | . . . . . . . 1 . . . . . . . . 3 . . 6 Guns 111 | . . 2 . 7 . 1 3 11 . 2 6 41 . 5 . . 1 7 25 Cannons 5 | . . . . . . . . . . . . . . . . . . 2 3 AOE 43 | . . . . . . . . 1 . 2 1 7 . . . . . 11 21 Classes Destroyed 19 | . 1 2 . 3 . . 3 4 . . 1 2 . . . . . 1 2 Worker 20 | . . . . . . . . 1 . . 3 8 . . . . . . 8 Builder 14 | . . . . . . . . 1 . . 1 7 . . 1 . . . 4 Tunneler 3 | . . 1 . . . . . . . . . 1 . . . . . . 1 Hauler 6 | . 1 . . . . . 1 1 . . . 2 . . . . . 1 . Recycler 9 | . . . . 1 . . . 1 . . 1 4 . . . . . . 2 Mechanic 2 | . . . . . . . . . . . . 1 . . . . . . 1 Watcher 9 | . . . . . . . 1 1 . . 1 4 . . . . . . 2 Swarmer 48 | . . . . 5 . 1 . 4 . . . 2 . 5 . 3 . 9 19 Saboteur 2 | . . . . . . . . . . . . 1 . . . . . . 1 Grunt 67 | . . . . 2 . . 1 5 . 3 3 28 . . . . 1 6 18 Brawler 6 | . . . . . . . . . . . 1 3 . . . . . . 2 Duelist 5 | . . . . . . . . 1 . . . 3 . . . . . . 1 Protector 1 | . . . . . . . . . . . . . . . . . . . 1 Sentry 14 | . . . . . . . 2 1 . . 2 1 . . . . . . 8 Specialist 2 | . . . . . . . . . . . . . . . . . . . 2 Hunter 7 | . . . . . . . 1 . . . 2 2 . . . . . 2 . Programmer 28 | . . . . . . . . 1 . 1 . 12 . . . . . 2 12 Behemoth 1 | . . . . . . . . . . . . . . . . . . 1 . Assembled 2 | . . 2 . . . . . . . . . . . . . . . . . Thug 1 | . . . . . . . . . . . 1 . . . . . . . . Best Kill Streak 19 | . 1 1 . 3 . 1 1 4 . 2 3 19 . 3 1 2 1 6 13 Combat Bots Only 12 | . . 1 . 3 . 1 1 4 . 2 3 12 . 3 . 2 1 6 7 Max Kills in Single Turn 8 | . 1 1 . 1 . 1 1 2 . 2 2 8 . 1 1 1 1 3 6 Gunslinging 1 | . . . . . . . . . . . 1 . . . . . . . 1 Exploded 3 | . . . . . . . . 1 . 2 1 2 . . . . . 3 3 Melee 1 | . . . . . . . 1 . . . . . . . . 1 . . 1 Uniques/NPCs Destroyed . | . . . . . . . . . . . . . . . . . . . . Combat | -11 -10 -10 -9 -9 -9 -8 -8 -7 -7 -7 -6 -5 -5 -5 -4 -4 -4 -3 -3 -------- Run | Yrd Mat Min Mat Min Exi Min Mat Fac Was Fac Fac Fac Upp Upp Fac Upp War Pro Res Hostile Shots Fired 1406 | . . 2 . 43 . 10 25 60 . 15 115 225 51 28 104 36 31 126 535 Missed 451 | . . . . 11 . 3 5 19 . 5 37 59 23 6 36 19 18 62 148 Damage Taken 18205 | . . 61 . 335 . 54 307 626 . 203 1179 3888 376 338 1432 287 291 1331 7497 Core 3521 | . . . . 36 . 17 15 91 . . 70 686 150 100 564 132 71 264 1325 Absorbed by Shields 1192 | . . . . . . . . . . . . . . . . . . 191 1001 Redirected to Shielding 551 | . . . . . . . . . . . . 52 . . 15 . . 78 406 Ignored by Resistances 1171 | . . . . . . . . . . 9 76 . . . . . . 53 1033 Regen/Repaired (Parts) 582 | . . . . . . . . . 80 17 41 405 . . . . 39 . . Core Remaining (%) 72 | 100 . 100 . . . 86 97 . . 87 91 . . 6 . . . 10 . Volleys Fired 469 | . 6 6 . 26 . 7 26 24 4 14 27 112 5 16 10 . 5 29 152 Largest 6 | . 2 2 . 2 . 2 3 4 3 4 5 5 1 2 2 . 2 3 6 Hottest 380 | . 60 60 . 85 . 140 225 245 170 206 258 326 70 151 141 . 120 96 380 Shots Fired 1280 | . 12 9 . 52 . 14 50 82 13 27 101 459 5 24 16 . 6 67 343 Gun 1208 | . 12 9 . 52 . 14 50 77 13 21 95 447 5 24 14 . 5 56 314 Cannon . | . . . . . . . . . . . . . . . . . . . . Launcher 50 | . . . . . . . . 5 . 6 6 12 . . . . . 6 15 Special 22 | . . . . . . . . . . . . . . . 2 . 1 5 14 Kinetic 484 | . 6 3 . 50 . 3 . . . . 25 151 . . . . . 56 190 Thermal 407 | . . . . 2 . 11 50 44 13 21 58 164 . 16 8 . . . 20 Explosive 38 | . . . . . . . . 5 . 1 . 3 . . . . 1 5 23 Electromagnetic 339 | . 6 6 . . . . . 33 . 5 18 141 5 8 6 . 1 . 110 Entropic 10 | . . . . . . . . . . . . . . . . . 4 6 . Robot Hit Streak 20 | . 3 3 . 14 . 2 16 13 16 9 12 12 16 4 9 . 3 16 20 Robot Miss Streak 9 | . 2 2 . 3 . 1 7 3 1 5 9 7 2 4 3 . 3 2 4 Penetration Max 2 | . . . . . . . . . . . . 2 . . . . . . 1 Secondary Targets 15 | . . . . . . 1 . . . . 2 7 . . . . . . 5 Max Gunslinging Chain 2 | . . . . . . 1 . . . . 1 1 . . . . . . 2 Shots Hit Robots 861 | . 6 6 . 35 . 7 35 50 13 17 65 266 5 15 15 5 4 49 268 Core Hits 529 | . 2 4 . 13 . 3 8 47 11 17 45 163 2 11 . 3 4 31 165 Critical Kills 15 | . . . . . . . . . . . . 8 . . . . . . 7 Critical Parts Destroyed 31 | . . . . . . . . . . . . 17 . . . . . 1 13 Critical Strikes 77 | . . . . 1 . . 3 2 . . 2 34 . . . . . 2 33 Burn 15 | . . . . 1 . . 3 1 . . 2 5 . . . . . . 3 Destroy 46 | . . . . . . . . . . . . 26 . . . . . 2 18 Corrupt 9 | . . . . . . . . 1 . . . 3 . . . . . . 5 Smash 4 | . . . . . . . . . . . . . . . . . . . 4 Sever 3 | . . . . . . . . . . . . . . . . . . . 3 Melee Attacks 49 | . . . . . . . . . . 1 . . . . 9 14 . . 25 Impact 19 | . . . . . . . . . . 1 . . . . . . . . 18 Slashing 29 | . . . . . . . . . . . . . . . 8 14 . . 7 Piercing . | . . . . . . . . . . . . . . . . . . . . Sneak Attacks 5 | . . . . . . . . . . . . . . . 2 . . . 3 Combat Hostiles 1 | . . . . . . . . . . . . . . . . . . . 1 Follow-up Attacks . | . . . . . . . . . . . . . . . . . . . . Damage Inflicted 33712 | . 91 72 . 467 . 159 723 1247 366 623 1958 8569 67 265 823 218 178 4907 12979 Guns 17527 | . 85 72 . 450 . 149 719 999 366 246 1546 5512 67 265 227 . 178 1338 5308 Cannons . | . . . . . . . . . . . . . . . . . . . . Explosions 13891 | . . . . . . . . 224 . 367 380 3029 . . 456 . . 3298 6137 Melee 1141 | . . . . . . . . . . . . . . . 140 218 . . 783 Ramming 248 | . 6 . . 17 . 10 4 24 . 10 32 28 . . . . . . 117 Kinetic 7346 | . 52 40 . 418 . 39 . . . . 432 1600 . . . . . 1338 3427 Thermal 8628 | . . . . 32 . 110 719 663 366 266 1143 3574 . 213 627 . . . 915 Explosive 6828 | . . . . . . . . 224 . 146 . 654 . . . . . 639 5165 Electromagnetic 5795 | . 33 32 . . . . . 336 . 201 351 2713 67 52 56 . 16 . 1938 Impact 607 | . . . . . . . . . . . . . . . . . . . 607 Slashing 1439 | . . . . . . . . . . . . . . . 140 218 . 271 810 Piercing . | . . . . . . . . . . . . . . . . . . . . Entropic 2821 | . . . . . . . . . . . . . . . . . 162 2659 . Highest Corruption 64 | . . . . . . . . 4 4 4 . 4 . . . . . 2 64 Average Corruption 9 | . . . . . . . . 1 4 4 . 3 . . . . . 1 23 Corruption Purged 4 | . . . . . . . . . . . . 4 . . . . . . . Corruption Blocked 13 | . . . . . . . . . . . . 13 . . . . . . . Effects 185 | . . . . . . . . 4 6 17 . 41 . . . . . 12 105 Message Errors 53 | . . . . . . . . 1 4 6 . 11 . . . . . 4 27 Matter Fused 32 | . . . . . . . . 1 . 2 . 11 . . . . . 4 14 Heat Flow Errors 12 | . . . . . . . . . 1 4 . 3 . . . . . . 4 Energy Discharges 17 | . . . . . . . . . . 1 . 5 . . . . . 1 10 Parts Rejected 4 | . . . . . . . . . . . . . . . . . . . 4 Parts Fused 1 | . . . . . . . . . . . . 1 . . . . . . . Data Loss (minor) 29 | . . . . . . . . 2 . 2 . 5 . . . . . 3 17 Data Loss (major) 7 | . . . . . . . . . . 1 . 1 . . . . . . 5 Misfires 4 | . . . . . . . . . 1 . . 1 . . . . . . 2 Alerts 3 | . . . . . . . . . . . . . . . . . . . 3 Misdirections 8 | . . . . . . . . . . . . . . . . . . . 8 Weapon Failures 15 | . . . . . . . . . . 1 . 3 . . . . . . 11 Overload Shots . | . . . . . . . . . . . . . . . . . . . . Overflow Damage 1269 | . . . . . . . . . . . . 350 . . 155 . . 279 485 Projectiles . | . . . . . . . . . . . . . . . . . . . . Explosions 934 | . . . . . . . . . . . . 350 . . 65 . . 279 240 Melee 335 | . . . . . . . . . . . . . . . 90 . . . 245 Knockbacks 4 | . . . . . . . . . . . . . . . . . . . 4 Impact 4 | . . . . . . . . . . . . . . . . . . . 4 Kinetic . | . . . . . . . . . . . . . . . . . . . . Secondary . | . . . . . . . . . . . . . . . . . . . . Self-Inflicted Damage 1350 | . . . . . . . 2 24 . 1 1 421 . . 173 . . 140 588 Shots 38 | . . . . . . . . 1 . 1 1 11 . . 2 . . 1 21 Rammed 72 | . . . . 5 . 8 1 4 . 3 3 4 . . . . . . 44 Targets Rammed 79 | . 1 . . 5 . 8 2 5 . 3 3 5 . . . . . . 47 Kicked 1 | . 1 . . . . . . . . . . . . . . . . . . Crushed 6 | . . . . . . . 1 1 . . . 1 . . . . . . 3 Highest Temperature 451 | . . . . . . 132 297 451 404 388 415 346 30 351 339 . . . 247 Average Temperature 118 | . . . . . . 70 81 144 168 139 99 91 16 135 178 . . . 86 Received Heat Transfer 2565 | . . . . 99 . . 72 159 . 90 258 792 . . 145 9 48 52 841 Effects 13 | . . . . . . . . 1 1 6 1 3 . 1 . . . . . Shutdowns 3 | . . . . . . . . . 1 . . 1 . 1 . . . . . Energy Bleed 4 | . . . . . . . . 1 . 2 1 . . . . . . . . Interference 5 | . . . . . . . . . . 3 . 2 . . . . . . . Damage (minor) 1 | . . . . . . . . . . 1 . . . . . . . . . Siege Activations . | . . . . . . . . . . . . . . . . . . . . Robots Corrupted 14 | . . . . . . . . . . . 1 4 . . . . . . 9 Combat Hostiles 13 | . . . . . . . . . . . . 4 . . . . . . 9 Parts Fried 32 | . . . . . . . . 5 . . 2 12 . . . . . . 13 Impact Corruptions 6 | . . . . . . . . . . . . . . . . . . . 6 Robots Melted 1 | . . . . . . . . . . . 1 . . . . . . . . Combat Hostiles 1 | . . . . . . . . . . . 1 . . . . . . . . Parts Melted 25 | . . . . 1 . . 5 . . 2 6 9 . . . . . . 2 Heat Transferred 11762 | . . . . 148 . 222 1468 777 415 416 1851 4687 . 333 559 . . . 886 Parts Sabotaged 2 | . . . . . . . . . . . . . . . . . . . 2 Parts Stolen . | . . . . . . . . . . . . . . . . . . . . Parts Stripped . | . . . . . . . . . . . . . . . . . . . . Power Chain Reactions 8 | . . . . . . . . . . 1 2 4 . . . . . . 1 Missiles Intercepted . | . . . . . . . . . . . . . . . . . . . . Alert | -11 -10 -10 -9 -9 -9 -8 -8 -7 -7 -7 -6 -5 -5 -5 -4 -4 -4 -3 -3 ------- Run | Yrd Mat Min Mat Min Exi Min Mat Fac Was Fac Fac Fac Upp Upp Fac Upp War Pro Res Peak Influence 1930 | . 21 12 4 111 . 84 126 260 74 1200 1023 1930 . . 862 . . . 1886 Initial 711 | . . 7 4 1 . . 32 70 74 51 588 432 . . 711 . . . . Average 582 | . 9 9 4 31 . 3 71 180 74 652 762 785 . . 722 . . . 941 Maximum Alert Level 5 | . . . . . . . . 1 . 4 3 5 . . 3 . . . 5 Low Security (%) 33 | . 100 100 100 100 . 100 100 46 100 14 . . . . . . . . 18 Level 1 6 | . . . . . . . . 53 . 30 . . . . . . . . 2 Level 2 19 | . . . . . . . . . . 2 50 54 . . 16 . . . 3 Level 3 23 | . . . . . . . . . . 44 49 22 . . 83 . . . 32 Level 4 13 | . . . . . . . . . . 8 . 14 . . . . . . 35 Level 5 3 | . . . . . . . . . . . . 7 . . . . . . 8 High Security . | . . . . . . . . . . . . . . . . . . . . Max Security . | . . . . . . . . . . . . . . . . . . . . Squads Dispatched 67 | . . . . . . . 2 3 . 12 8 18 . . 5 . . . 19 Investigation 19 | . . . . . . . 2 1 . 5 3 4 . . 1 . . . 3 Extermination 13 | . . . . . . . . 1 . . 1 5 . . 1 . . . 5 Reinforcement 16 | . . . . . . . . 1 . 1 1 5 . . 3 . . . 5 Assault 10 | . . . . . . . . . . 2 1 4 . . . . . . 3 Garrison 9 | . . . . . . . . . . 4 2 . . . . . . . 3 Intercept . | . . . . . . . . . . . . . . . . . . . . Searches Triggered . | . . . . . . . . . . . . . . . . . . . . Construction Impeded 6 | . . . . . . . . 1 . 1 . 2 . . . . . . 2 Haulers Reinforced 2 | . . . . . . . . . . . . 2 . . . . . . . Active Scanning Responses . | . . . . . . . . . . . . . . . . . . . . Cargo Convoy Interrupts . | . . . . . . . . . . . . . . . . . . . . Stealth | -11 -10 -10 -9 -9 -9 -8 -8 -7 -7 -7 -6 -5 -5 -5 -4 -4 -4 -3 -3 --------- Run | Yrd Mat Min Mat Min Exi Min Mat Fac Was Fac Fac Fac Upp Upp Fac Upp War Pro Res Distress Signals 12 | . . . . . . . 2 . . 1 . 3 . . . . . . 6 Communications Jammed . | . . . . . . . . . . . . . . . . . . . . Distress Signals . | . . . . . . . . . . . . . . . . . . . . Times Spotted 338 | . 1 2 . 9 . 3 11 17 . 28 22 73 2 9 15 17 9 20 100 Peak Tracking Total 9 | . 1 1 . 3 . 2 4 4 . 5 5 9 2 5 7 6 9 6 9 Tactical Retreats 33 | . . . . 1 . . . . . . . 10 2 . 3 2 . 1 14 Traps | -11 -10 -10 -9 -9 -9 -8 -8 -7 -7 -7 -6 -5 -5 -5 -4 -4 -4 -3 -3 ------- Run | Yrd Mat Min Mat Min Exi Min Mat Fac Was Fac Fac Fac Upp Upp Fac Upp War Pro Res Traps Triggered 8 | . . . . . . . 1 1 . 1 1 3 . . . . . . 1 Indirectly 1 | . . . . . . . . . . . . 1 . . . . . . . Trap Hack Attempts . | . . . . . . . . . . . . . . . . . . . . Triggered . | . . . . . . . . . . . . . . . . . . . . Disarmed 2 | . . . . . . . . . . . . 2 . . . . . . . Reprogrammed . | . . . . . . . . . . . . . . . . . . . . Reused 2 | . . . . . . . . 2 . . . . . . . . . . . Traps Extracted . | . . . . . . . . . . . . . . . . . . . . Installed 6 | . . . . 3 . . . 2 . . . . . . . . . 1 . Triggered 19 | . . . . . . . . 2 . . . . 1 3 2 . 10 1 . Most Traps Carried 2 | . . . . 2 2 2 2 2 . . . . . . . . . . . Machines | -11 -10 -10 -9 -9 -9 -8 -8 -7 -7 -7 -6 -5 -5 -5 -4 -4 -4 -3 -3 ---------- Run | Yrd Mat Min Mat Min Exi Min Mat Fac Was Fac Fac Fac Upp Upp Fac Upp War Pro Res Machines Disabled 49 | . . . . . . . 2 . . 5 1 33 . . 2 . 1 . 5 Max in Single Turn 8 | . . . . . . . 1 . . 1 1 8 . . 2 . 1 . 1 Garrison Access 1 | . . . . . . . . . . 1 . . . . . . . . . Machines Repaired . | . . . . . . . . . . . . . . . . . . . . Machines Dismantled . | . . . . . . . . . . . . . . . . . . . . Machines Sabotaged . | . . . . . . . . . . . . . . . . . . . . Overloaded Fab Kills . | . . . . . . . . . . . . . . . . . . . . Hacking | -11 -10 -10 -9 -9 -9 -8 -8 -7 -7 -7 -6 -5 -5 -5 -4 -4 -4 -3 -3 --------- Run | Yrd Mat Min Mat Min Exi Min Mat Fac Was Fac Fac Fac Upp Upp Fac Upp War Pro Res Machines Accessed 32 | . 2 . . . 1 . 1 1 . 5 4 7 1 . 1 . 3 . 6 Terminals 17 | . 2 . . . . . 1 1 . 2 2 3 1 . 1 . . . 4 Fabricators 3 | . . . . . . . . . . 1 1 1 . . . . . . . Repair Stations 3 | . . . . . . . . . . . 1 1 . . . . . . 1 Recycling Units 1 | . . . . . . . . . . . . 1 . . . . . . . Scanalyzers 2 | . . . . . . . . . . 1 . . . . . . . . 1 Garrison Access 2 | . . . . . . . . . . 1 . 1 . . . . . . . Total Hacks 111 | . 7 . . . 1 . 2 2 . 24 12 34 1 . 6 . 6 . 16 Successful 57 | . 4 . . . 1 . . . . 10 6 22 1 . 4 . 6 . 3 Failed 54 | . 3 . . . . . 2 2 . 14 6 12 . . 2 . . . 13 Catastrophic 14 | . 1 . . . . . . 1 . 2 3 2 . . . . . . 5 Database Lockouts . | . . . . . . . . . . . . . . . . . . . . Manual 62 | . 3 . . . . . 2 2 . 12 9 16 . . 1 . 10 . 7 Terminals 73 | . 7 . . . . . 2 2 . 15 5 23 1 . 6 . . . 12 Fabricators 11 | . . . . . . . . . . 2 6 3 . . . . . . . Repair Stations 6 | . . . . . . . . . . . 1 3 . . . . . . 2 Recycling Units 3 | . . . . . . . . . . . . 3 . . . . . . . Scanalyzers 7 | . . . . . . . . . . 5 . . . . . . . . 2 Garrison Access 4 | . . . . . . . . . . 2 . 2 . . . . . . . Terminal Hacks 33 | . 4 . . . 1 . . . . 5 . 11 1 . 4 . 6 . 1 Record 6 | . . . . . 1 . . . . . . . 1 . . . 4 . . Prototype ID Bank 4 | . 2 . . . . . . . . 1 . 1 . . . . . . . Open Door 2 | . . . . . . . . . . . . . . . . . 2 . . Level Access Points 1 | . . . . . . . . . . 1 . . . . . . . . . Branch Access Points 2 | . . . . . . . . . . . . 1 . . 1 . . . . Emergency Access Points 2 | . 1 . . . . . . . . 1 . . . . . . . . . Recycling Unit Index 1 | . . . . . . . . . . . . 1 . . . . . . . Alert Level 6 | . . . . . . . . . . 1 . 3 . . 1 . . . 1 Unreport Threat 5 | . . . . . . . . . . 1 . 2 . . 2 . . . . Locate Traps 3 | . 1 . . . . . . . . . . 2 . . . . . . . Disarm Traps 1 | . . . . . . . . . . . . 1 . . . . . . . Fabricator Hacks 4 | . . . . . . . . . . . 3 1 . . . . . . . Network Status 2 | . . . . . . . . . . . 1 1 . . . . . . . Load Schematic 1 | . . . . . . . . . . . 1 . . . . . . . . Build 1 | . . . . . . . . . . . 1 . . . . . . . . Repair Station Hacks 2 | . . . . . . . . . . . . 2 . . . . . . . Scan Component 1 | . . . . . . . . . . . . 1 . . . . . . . Repair 1 | . . . . . . . . . . . . 1 . . . . . . . Recycling Unit Hacks 3 | . . . . . . . . . . . . 3 . . . . . . . Process 1 | . . . . . . . . . . . . 1 . . . . . . . Report Inventory 1 | . . . . . . . . . . . . 1 . . . . . . . Retrieve Matter 1 | . . . . . . . . . . . . 1 . . . . . . . Scanalyzer 4 | . . . . . . . . . . 4 . . . . . . . . . Insert Component 2 | . . . . . . . . . . 2 . . . . . . . . . Analyze 2 | . . . . . . . . . . 2 . . . . . . . . . Garrison Access Hacks 2 | . . . . . . . . . . . . 2 . . . . . . . Unlock Access 1 | . . . . . . . . . . . . 1 . . . . . . . Coupler Status 1 | . . . . . . . . . . . . 1 . . . . . . . Unauthorized Hacks 9 | . . . . . . . . . . 1 3 3 . . . . . . 2 Terminals 6 | . . . . . . . . . . 1 1 2 . . . . . . 2 Botnet 5 | . . . . . . . . . . . 1 2 . . . . . . 2 Search 1 | . . . . . . . . . . 1 . . . . . . . . . Fabricators 3 | . . . . . . . . . . . 2 1 . . . . . . . Prioritize 1 | . . . . . . . . . . . 1 . . . . . . . . Fabnet 2 | . . . . . . . . . . . 1 1 . . . . . . . Repair Stations . | . . . . . . . . . . . . . . . . . . . . Recycling Units . | . . . . . . . . . . . . . . . . . . . . Scanalyzers . | . . . . . . . . . . . . . . . . . . . . Garrison Access . | . . . . . . . . . . . . . . . . . . . . Data Cores Recovered . | . . . . . . . . . . . . . . . . . . . . Used . | . . . . . . . . . . . . . . . . . . . . Hacking Detections 26 | . 2 . . . . . 1 1 . 5 4 6 . . 1 . . . 6 Full Trace Events 19 | . 2 . . . . . 1 1 . 4 3 4 . . 1 . . . 3 Feedback Events 1 | . . . . . . . . 1 . . . . . . . . . . . Corruption 1 | . . . . . . . . 1 . . . . . . . . . . . Feedback Blocked . | . . . . . . . . . . . . . . . . . . . . Robot Schematics Acquired . | . . . . . . . . . . . . . . . . . . . . Robots Built . | . . . . . . . . . . . . . . . . . . . . Authchips . | . . . . . . . . . . . . . . . . . . . . Time . | . . . . . . . . . . . . . . . . . . . . Total Robot Build Rating . | . . . . . . . . . . . . . . . . . . . . Part Schematics Acquired 2 | . . . . . . . . . . 2 . . . . . . . . . Parts Built 1 | . . . . . . . . . . . 1 . . . . . . . . Authchips . | . . . . . . . . . . . . . . . . . . . . Time 67 | . . . . . . . . . . . 67 . . . . . . . . Total Part Build Rating 4 | . . . . . . . . . . . 4 . . . . . . . . Parts Repaired 1 | . . . . . . . . . . . . 1 . . . . . . . Time 56 | . . . . . . . . . . . . 56 . . . . . . . Parts Recycled . | . . . . . . . . . . . . . . . . . . . . Recycled Matter 104 | . . . . . . . . . . . . 104 . . . . . . . Retrieved Matter 104 | . . . . . . . . . . . . 104 . . . . . . . Retrieved Components . | . . . . . . . . . . . . . . . . . . . . Parts Scanalyzed 2 | . . . . . . . . . . 2 . . . . . . . . . Part Schematics Acquired 2 | . . . . . . . . . . 2 . . . . . . . . . Parts Damaged . | . . . . . . . . . . . . . . . . . . . . Bothacking | -11 -10 -10 -9 -9 -9 -8 -8 -7 -7 -7 -6 -5 -5 -5 -4 -4 -4 -3 -3 ------------ Run | Yrd Mat Min Mat Min Exi Min Mat Fac Was Fac Fac Fac Upp Upp Fac Upp War Pro Res Used RIF Installer . | . . . . . . . . . . . . . . . . . . . . Robots Hacked 14 | . . . . . . . . . . . . 3 . 3 3 . 4 . 1 Non-combat 2 | . . . . . . . . . . . . . . . 2 . . . . Combat 12 | . . . . . . . . . . . . 3 . 3 1 . 4 . 1 Robot Hacks Applied 3 | . . . . . . . . . . . . . . . 3 . . . . parse_system 1 | . . . . . . . . . . . . . . . 1 . . . . find_recycling 1 | . . . . . . . . . . . . . . . 1 . . . . check_alert 1 | . . . . . . . . . . . . . . . 1 . . . . Relay Couplers Released 6 | . . . . . . . . . . 3 . 3 . . . . . . . Machine Destruction 3 | . . . . . . . . . . 3 . . . . . . . . . Programmers 3 | . . . . . . . . . . . . 3 . . . . . . . Fabnet Peak Effective % 4 | . . . . . . . . . . . . 3 3 3 4 4 4 1 1 Autooverrided 12 | . . . . . . . . . . . . 3 . 3 1 . 4 . 1 Robots Rewired 5 | . . . . . . . . . . . . . . . . . 5 . . Allies Hacked . | . . . . . . . . . . . . . . . . . . . . Hacks Repelled . | . . . . . . . . . . . . . . . . . . . . Allies | -11 -10 -10 -9 -9 -9 -8 -8 -7 -7 -7 -6 -5 -5 -5 -4 -4 -4 -3 -3 -------- Run | Yrd Mat Min Mat Min Exi Min Mat Fac Was Fac Fac Fac Upp Upp Fac Upp War Pro Res Total Allies 40 | . . . . 3 . . . . 20 . . 3 . 3 1 . 9 . 1 Largest Group 20 | . . . . 3 3 3 3 . 20 20 8 2 . 2 1 . 7 . 1 Highest-Rated Group 473 | . . . . 40 39 39 39 . 473 473 248 76 . 24 56 . 339 . 58 Highest-Rated Ally 81 | . . . . 16 16 16 16 . 35 35 35 47 . 12 56 . 81 . 58 Total Orders 7 | . . . . . . . . . . . . 3 . . . . . 2 2 EXPLORE 5 | . . . . . . . . . . . . 2 . . . . . 1 2 RETURN 2 | . . . . . . . . . . . . 1 . . . . . 1 . Ally Attacks 356 | . . . . 2 . 9 9 . 2 188 93 13 . 12 3 . 23 . 2 Total Damage 7130 | . . . . 11 . 58 72 . 27 3419 2138 255 . 123 113 . 895 . 19 Kills 64 | . . . . 1 . 2 . . 1 34 16 1 . 3 . . 6 . . Allies Corrupted 3 | . . . . . . . . . . 1 2 . . . . . . . . Allies Melted 1 | . . . . . . . . . . . . . . . 1 . . . . Intel | -11 -10 -10 -9 -9 -9 -8 -8 -7 -7 -7 -6 -5 -5 -5 -4 -4 -4 -3 -3 ------- Run | Yrd Mat Min Mat Min Exi Min Mat Fac Was Fac Fac Fac Upp Upp Fac Upp War Pro Res Robot Analysis Total . | . . . . . . . . . . . . . . . . . . . . Derelict Logs Recovered 4 | . . 1 . 1 . . . . . . . . 1 . . 1 . . . Drone Launches 26 | . . . . . . . . . . . . 6 . . . . . 10 10 Drone Recoveries 20 | . . . . . . . . . . . . 6 . . . . . 10 4 Exploration | -11 -10 -10 -9 -9 -9 -8 -8 -7 -7 -7 -6 -5 -5 -5 -4 -4 -4 -3 -3 ------------- Run | Yrd Mat Min Mat Min Exi Min Mat Fac Was Fac Fac Fac Upp Upp Fac Upp War Pro Res Turns Passed 12511 | . 186 249 53 867 214 456 349 681 342 754 850 2543 326 105 254 128 459 1202 2493 Spaces Moved 7715 | 1 137 190 42 483 135 258 177 312 178 429 412 1200 378 41 262 339 777 678 1286 Core 430 | . . . . . . . . . . . . 50 178 . 131 . . . 71 Treads 4026 | . . . . 464 135 258 122 189 146 429 412 1150 . . . . . . 721 Legs 544 | 1 137 190 42 19 . . . 123 32 . . . . . . . . . . Wheels 55 | . . . . . . . 55 . . . . . . . . . . . . Hover 1552 | . . . . . . . . . . . . . 200 41 59 . 214 678 360 Flight 1108 | . . . . . . . . . . . . . . . 72 339 563 . 134 Fastest Speed 22 | 120 120 120 120 120 160 160 115 125 125 160 160 50 50 80 22 25 25 88 40 Average Speed 128 | 120 120 120 120 158 160 160 146 163 153 160 160 159 80 155 70 25 45 152 136 Slowest Speed 290 | 120 120 120 120 160 160 160 240 200 160 160 160 250 150 220 290 25 200 196 196 Overloaded Moves 56 | . . . . . . . . . . . . . . . 14 . 29 11 2 Propulsion Burnouts . | . . . . . . . . . . . . . . . . . . . . Robots Hopped 5 | . . . . . . . . . . . . . . . . . 2 . 3 Cave-ins Triggered . | . . . . . . . . . . . . . . . . . . . . Exploration Rate (%) 40 | 2 34 54 7 98 50 63 29 8 74 16 18 36 64 9 12 30 89 86 28 Regions Visited 19 Branch Regions 9 Pre-discovered Areas 2 | . . 1 . . . . . . . . . . . . . 1 . . . Known Exits Taken 7 | . . . . . . . 1 . . 1 . 1 . 1 1 1 1 . . Unknown Exits Taken 10 | 1 1 1 1 1 1 1 . . . . 1 . 1 . . . . 1 . Scrap Searched 8 | . . 1 . 2 . 1 . . . . . . 1 1 . 1 . 1 . Spaces Dug 4 | . . . . . . . . . . . . . . . 4 . . . . Terrain Destroyed 1227 | . . . . . . 3 5 21 . 4 2 255 . . 17 . 4 358 558 Melee 4 | . . . . . . . . . . . . . . . 4 . . . . Projectile 67 | . . . . . . 3 5 1 . . . 18 . . . . 4 23 13 AOE 1155 | . . . . . . . . 20 . 4 2 236 . . 13 . . 335 545 Terrain Rammed . | . . . . . . . . . . . . . . . . . . . . Walls Destroyed . | . . . . . . . . . . . . . . . . . . . . Machines Disabled . | . . . . . . . . . . . . . . . . . . . . Actions | -11 -10 -10 -9 -9 -9 -8 -8 -7 -7 -7 -6 -5 -5 -5 -4 -4 -4 -3 -3 --------- Run | Yrd Mat Min Mat Min Exi Min Mat Fac Was Fac Fac Fac Upp Upp Fac Upp War Pro Res Total 9242 | . 145 202 43 533 136 283 225 425 242 473 542 1555 393 60 301 360 874 788 1662 Wait 434 | . . . . 1 . 1 1 53 41 10 87 122 . . 3 8 3 61 43 Move 7689 | . 136 189 41 482 134 257 177 312 177 428 411 1200 377 40 261 338 772 677 1280 Hop 5 | . . . . . . . . . . . . . . . . . 2 . 3 Pick Up 43 | . . 1 . 5 1 2 1 3 1 5 4 6 . . . . 7 . 7 Fast Attach 176 | . 1 3 2 3 . 2 7 11 5 1 2 40 8 3 12 . 25 7 44 Attach 41 | . . . . 1 . . . . . . 3 9 1 . 2 . 6 5 14 Detach 42 | . . 1 . . . . . 1 2 . 1 10 2 1 2 . 3 5 14 Swap 41 | . 1 . . . . 2 3 5 . 4 . 19 . . . . 1 1 5 Drop 132 | . . 2 . 7 1 4 9 9 11 7 4 33 . . 2 . 27 2 14 Fire 469 | . 6 6 . 26 . 7 26 24 4 14 27 112 5 16 10 . 5 29 152 Melee 49 | . . . . . . . . . . 1 . . . . 9 14 . . 25 Ram 2 | . . . . . . . 1 . . . . . . . . . . . 1 Kick 1 | . 1 . . . . . . . . . . . . . . . . . . Crush 74 | . . . . 5 . 8 . 5 . 3 3 4 . . . . . . 46 Escape Stasis 13 | . . . . . . . . . . . . . . . . . . . 13 Rewire 25 | . . . . . . . . . 1 . . . . . . . 23 . 1 Trap 6 | . . . . 3 . . . 2 . . . . . . . . . 1 . Miscellaneous . | . . . . . . . . . . . . . . . . . . . . Route ------- -11/Scrapyard -10/Materials -10/Mines -9/Materials -9/Mines (discovered 3 exits: *Mat x2 / *Exi) -9/Exiles -8/Mines -8/Materials (discovered 2 exits: *Fac x2) -7/Factory -7/Waste -7/Factory (discovered 4 exits: *Fac x4) -6/Factory -5/Factory (discovered 4 exits: *Fac / *Upp x2 / Gar) -5/Upper Caves -5/Upper Caves -4/Factory (discovered 2 exits: *Upp x2) -4/Upper Caves -4/Warlord -3/Proximity Caves -3/Research (discovered 1 exit: *Arm) History --------- Turn | Location | Event 1 | -11/Scrapyard | Discovered new exit (range 0) 1 | -11/Scrapyard | Entered Materials 159 | -10/Materials | Discovered new exit (range 13) 187 | -10/Materials | Entered Mines 193 | -10/Mines | Assembled infested the area 193 | -10/Mines | Learned Materials security intel 315 | -10/Mines | Build established: Mutant 425 | -10/Mines | Learned location of Storage (-9) 427 | -10/Mines | Discovered new exit (range 8) 436 | -10/Mines | Entered Materials 436 | -9/Materials | Evolved 2 slots: Utility x2 466 | -9/Materials | Discovered new exit (range 16) 489 | -9/Materials | Entered Mines 675 | -9/Mines | Found a hidden stash of uninstalled traps 775 | -9/Mines | Received a Rocket Launcher from a helpful Derelict 857 | -9/Mines | Discovered new exit (range 12) 993 | -9/Mines | Assisted by bots powering up and referring to "LRC-V3" 995 | -9/Mines | Learned location of 1 exit from Materials 1111 | -9/Mines | Discovered new exit (range 8) 1347 | -9/Mines | Deemed a non-threat by the Exiles lab entrance 1347 | -9/Mines | Discovered new exit (range 5) 1356 | -9/Mines | Entered Exiles 1356 | -9/Exiles | Found Exiles lab abandoned 1356 | -9/Exiles | Accompanied by 3 allies 1554 | -9/Exiles | Discovered new exit (range 10) 1570 | -9/Exiles | Entered Mines 1570 | -8/Mines | Accompanied by 3 allies 2001 | -8/Mines | Discovered new exit (range 9) 2026 | -8/Mines | Entered Materials 2026 | -8/Materials | Accompanied by 3 allies 2026 | -8/Materials | Evolved 2 slots: Propulsion x1, Weapon x1 2027 | -8/Materials | Identified exit to Factory 2217 | -8/Materials | Lost 3 allies 2333 | -8/Materials | Discovered exit to Factory (range 16) 2375 | -8/Materials | Entered Factory 2375 | -7/Factory | Evolved 2 slots: Propulsion x1, Weapon x1 2613 | -7/Factory | Build established: Gunner 3056 | -7/Factory | Sucked down chute 3056 | -7/Factory | Entered Waste 3057 | -7/Waste | Joined by Warlord forces that had cleared the area 3150 | -7/Waste | Found Damper Plating 3170 | -7/Waste | Discovered new exit (range 15) 3190 | -7/Waste | Build established: Tank 3320 | -7/Waste | A Compactor rumbled back to life 3320 | -7/Waste | Allies destroyed C-40 Crusher 3398 | -7/Waste | Entered Factory 3398 | -7/Factory | Accompanied by 20 allies 3530 | -7/Factory | Lost 3 allies 3584 | -7/Factory | Build established: Scavenger-Tank 3588 | -7/Factory | Identified exit to Factory 3663 | -7/Factory | Lost 5 allies 3728 | -7/Factory | Garrison activated, responded to threat 3798 | -7/Factory | First assault squad dispatched 3952 | -7/Factory | Garrison activated, responded to threat 4152 | -7/Factory | Entered another Factory area 4152 | -6/Factory | Accompanied by 8 allies 4152 | -6/Factory | Evolved 2 slots: Utility x1, Weapon x1 4249 | -6/Factory | Fabricated Prc. Shock Rifle? 4502 | -6/Factory | First assault squad dispatched 4502 | -6/Factory | Lost 3 allies 4900 | -6/Factory | Garrison activated, responded to threat 4986 | -6/Factory | Discovered new exit (range 11) 5002 | -6/Factory | Entered another Factory area 5002 | -5/Factory | Evolved 2 slots: Power x1, Utility x1 5243 | -5/Factory | Build established: Gunner 5428 | -5/Factory | Discovered new exit (range 15) 5531 | -5/Factory | Identified exit to Factory 5606 | -5/Factory | Repaired Hvy. Treads 5779 | -5/Factory | Build established: Scavenger-Gunner 5932 | -5/Factory | Identified exit to Garrison 6098 | -5/Factory | Identified exit to Upper Caves 6202 | -5/Factory | First assault squad dispatched 6652 | -5/Factory | Build established: Gunner 7159 | -5/Factory | Build established: Scavenger-Gunner 7212 | -5/Factory | Lost 3 parts (1p1n1w) 7397 | -5/Factory | Lost 5 parts (1p1n3w) 7433 | -5/Factory | Destroyed 12 combat bots 7508 | -5/Factory | Core integrity fell below 50% 7545 | -5/Factory | Entered Upper Caves 7572 | -5/Upper Caves | Lost 10 parts (1p1n4u4w) 7637 | -5/Upper Caves | Build established: Mutant 7701 | -5/Upper Caves | Core integrity fell below 20% 7829 | -5/Upper Caves | Discovered new exit (range 4) 7844 | -5/Upper Caves | Learned Factory machine intel 7871 | -5/Upper Caves | Entered another Upper Caves area 7946 | -5/Upper Caves | Discovered exit to Factory (range 10) 7976 | -5/Upper Caves | Entered Factory 7976 | -4/Factory | Evolved 2 slots: Utility x2 7977 | -4/Factory | Loaded intel: 279 machine locations 8119 | -4/Factory | Noticed a derelict Sapper rigging charges 8150 | -4/Factory | Lost 8 parts (1p2n2u3w) 8204 | -4/Factory | Identified exit to Upper Caves 8230 | -4/Factory | Entered Upper Caves 8232 | -4/Upper Caves | Learned location of Armory (-3) 8236 | -4/Upper Caves | Encountered a Warlord checkpoint 8243 | -4/Upper Caves | Core integrity fell below 50% 8357 | -4/Upper Caves | A Derelict revealed a hidden shortcut to "reach the base" 8358 | -4/Upper Caves | Identified exit to Warlord 8358 | -4/Upper Caves | Entered Warlord 8472 | -4/Warlord | Visited the Vortex Lab 8475 | -4/Warlord | Met EX-DEC 8478 | -4/Warlord | Warlord's base attacked by MAIN.C 8481 | -4/Warlord | Found Prototype Launcher 8481 | -4/Warlord | Identified Vortex Catalyst Activator 8485 | -4/Warlord | Found Prototype Energy Gun 8485 | -4/Warlord | Identified Vortex Shotgun 8540 | -4/Warlord | Learned Factory terminal intel 8540 | -4/Warlord | Learned Factory scanalyzer intel 8540 | -4/Warlord | Learned Factory garrison access intel 8540 | -4/Warlord | Learned Armory terminal intel 8543 | -4/Warlord | Found Prototype Device 8543 | -4/Warlord | Identified Minesniffer Drone Bay 8547 | -4/Warlord | Found Minesniffer Drone Bay 8551 | -4/Warlord | Found Minesniffer Drone Bay 8559 | -4/Warlord | Met Warlord 8562 | -4/Warlord | Found Prototype Special Weapon 8562 | -4/Warlord | Identified RU-N14's Throwing Claymores v3 8569 | -4/Warlord | Found RU-N14's Throwing Claymores v3 8585 | -4/Warlord | Found Prototype Device 8585 | -4/Warlord | Identified Exp. Phase Shifter 8592 | -4/Warlord | Found Prototype Reactor 8592 | -4/Warlord | Identified Vortex Chain Reactor 8606 | -4/Warlord | Found Prototype Hackware 8606 | -4/Warlord | Identified Ghost Barrier 8643 | -4/Warlord | Found RU-N14's Throwing Claymores v3 8757 | -4/Warlord | Opened side exit 8778 | -4/Warlord | Discovered new exit (range 15) 8783 | -4/Warlord | Spotted Executioner 8805 | -4/Warlord | Found Prototype Device 8805 | -4/Warlord | Identified Adv. Kinecellerator 8816 | -4/Warlord | Identified exit to Proximity Caves 8817 | -4/Warlord | Entered Proximity Caves 8834 | -3/Proximity Caves | Build established: Hacker-Mutant 8842 | -3/Proximity Caves | Lost 5 allies 8848 | -3/Proximity Caves | Spotted B-86 Titan 8979 | -3/Proximity Caves | Destroyed B-86 Titan 9008 | -3/Proximity Caves | Lost 4 parts (4u) 9043 | -3/Proximity Caves | Core integrity fell below 20% 9281 | -3/Proximity Caves | Build established: Mutant 9339 | -3/Proximity Caves | Ambushed by research squad 10005 | -3/Proximity Caves | Discovered new exit (range 7) 10019 | -3/Proximity Caves | Entered Research 10019 | -3/Research | Evolved 2 slots: Utility x1, Weapon x1 10388 | -3/Research | Build established: Scavenger-Tank 10505 | -3/Research | Destroyed 7 combat bots 10557 | -3/Research | Lost 3 parts (1u2w) 10585 | -3/Research | Found Prototype Device 10585 | -3/Research | Identified Exp. Thermal Shield 10718 | -3/Research | Found Gamma Bomb Array 10836 | -3/Research | System corruption reached 10% 10895 | -3/Research | Discovered new exit (range 18) 10928 | -3/Research | Identified exit to Armory 11337 | -3/Research | Found Fusion Bomb Launcher 11376 | -3/Research | Found Prototype Launcher 11376 | -3/Research | Identified Tactical Quantum Warhead 11416 | -3/Research | Build established: Scavenger-Executioner 11429 | -3/Research | Found Gamma Bomb Array 11769 | -3/Research | First assault squad dispatched 11769 | -3/Research | Lost 3 parts (3w) 12088 | -3/Research | System corruption reached 30% 12241 | -3/Research | Found Prototype Processor 12241 | -3/Research | Identified Exp. Terrain Scan Processor 12332 | -3/Research | Destroyed 7 combat bots 12334 | -3/Research | Lost 7 parts (1p1n2u3w) 12353 | -3/Research | Core integrity fell below 50% 12422 | -3/Research | Lost 13 parts (1p2n3u7w) 12432 | -3/Research | Core integrity fell below 20% 12512 | -3/Research | Destroyed by H-71 Marshal with Heavy Mass Driver Last Messages --------------- 12483_ U-05 Engineer lays Concrete. 12484_ U-05 Engineer builds a Wall. 12484_ K-01 Serf collects debris. 12484_ U-05 Engineer lays Concrete. 12485_ U-05 Engineer builds a Wall. 12487_ U-05 Engineer lays Concrete. 12488_ U-05 Engineer builds a Wall. 12488_ U-05 Engineer lays Concrete. 12491_ System corrupted: Imp. Antigrav System rejected. 12491_ Acquired Imp. Antigrav System. 12494_ C-30 ARC bursts open, deploying its payload. 12494_ G-67 Veteran unfolds itself. 12494_ E-15 Imp unfolds itself. 12494_ Imp. Antigrav System blown off. 12494_ Minesniffer Drone Bay blown off. 12494_ E-15 Imp destroyed. 12506_ System corrupted: Matter fused (-5). 12509_ ALERT: Suspicious intruders detected, dispatching Cutter reinforcements to area. 12511_ Acquired 51 matter. Map ----- +----------------------------------------------------+ | ?????????????????????????????????????????????????? | | ?????????????????????????????????????????????????? | | ??????????????????????????""?????????????????????? | | ?????????????????????????"""?????????????????????? | | ?????????????????????????"F??????????????????????? | | ?????????????????????????"""?????????????????????? | | #####????????????????????"""?????????????????????? | | #????????????????????"""?????????????????????? | | #????????????????????????????????????????????? | | " #????????????????????????????????????????????? | | "" #????????????????????????????????????????????? | | "" #????????????????????????????????????????????? | | "" ######???????????????????????????????????????? | | " ## # ####???????????????????????????????????? | | #???????????????????????????????????? | | #???????????????????????????????????? | | +### " #???????????????????????????????????? | | # "" #?????????????????#?????????????????? | | % G #???????????????? #?????????????????? | | %### "" #???????????????? #?????????????????? | | #?# " #?????#########? #?????????????????? | | #?# #???### # # #?????????????????? | | #??? #???# # ##????????????????? | | #######+################# #????????????????? | | k % #????????????????? | | @ H #????????????????? | | #????????????????? | | # # ###############+### #????????????????? | | ## # #?????????# #######????????????????? | | # ###?????????# #??????????????????????? | | ########??????????# #??????????????????????? | | #??????????# #??????????????????????? | | ############ #??????????????????????? | | + #??????????????????????? | | #####+############# #??????????????????????? | | #?? ??????????#######??????????????????????? | | ## ?????????????????????????????????????? | | ## ! #????????????????????????????????????? | | ## #????????????????????????????????????? | | ## #????????????????????????????????????? | | ## #???????????####?????????????????????? | | ## ###########?# ##########????????????? | | ## ## # ## # # ##???????????? | | ## # # # # # # # ##??????????? | | ##################### # # #??????????? | | [ ! # ##?????????? | | % * ! # ###???????? | | ! # #???????? | | ## T### ####/############ # # # #???????? | | ?####?# # ! #### # ## ##???????? | +----------------------------------------------------+ Best States ------------- Heat Dissipation 95 Energy Generation 55 Energy Capacity 700 Matter Stores 300 Matter Capacity 450 Sight Range 22 Terrain Scan Range 14 Terrain Scan Density 10 Corruption Block 15 Armor Coverage 1600 Resistance: TH 30 Resistance: EM 90 Core Shielding 30 Power Shielding 66 Propulsion Shielding 33 Utility Shielding 66 Weapon Shielding 66 Phase Shifting 20 Evasion (%) 77 Targeting Accuracy 16 Melee Accuracy 5 Target Analysis 11 Core Analysis 6 Recoil Reduction 4 Particle Charging 20 Kinecelleration 30 Salvage Targeting 4 Offensive Hacking 26 Defensive Hacking 20 Item Schematics ----------------- Prc. Shock Rifle | -7/Factory | Scanalyzed Imp. Carbon-fiber Leg | -7/Factory | Scanalyzed Robot Schematics ------------------ None Fabricated ------------ Prc. Shock Rifle | x1 | -6/Factory Alien Tech Used ----------------- None Achievements -------------- None Challenges ------------ None Game ------ Seed ContainmentSapperFragment Manual? 0 Play Time 01:25:23 Cumulative 647.2 hours Start 2024.02.07 @ 12:59:10 End 2024.02.08 @ 21:38:40 Sessions 3 Manual Loads 0 Difficulty Rogue Special Mode None Game No. 628 Rogue 355 Adventurer 123 Explorer 150 Win Type - Total 25 Types 19/0/4/1/0/0/0/1/0 Lore% 80 Gallery% 91 Achievement% 76 Wizard Run 0 Options --------- ASCII 0 Keyboard 1 Movement Numpad Keybinds 0 Fullscreen 2 Font 18/X11Bold Map View 76x50 Zoom Use 1% Tactical HUD 1 Map Filters NONE Filters NONE Steam 1 RUN: 6eff2833-e3cd-4fa5-9394-c8fee3c4d912